{"text_format":"3","workbook":"xlsx","n_sheets":13,"sheets":["Januar","Februar","Marec","April","maj","Junij","Julij","Avgust","September","Oktober","November","December","Povzetek leta do danes"],"not_rendered":{"charts":1,"defined_names":13},"read":"whole","date_system":"1900"}

{"sheet":"Januar","index":0,"n_rows":9,"n_cols":14,"rows_kept":9,"merged":[[3,0,4,0],[6,0,7,0]]}
["JANUAR"]
["Spletna prodaja",null,"ID dražbe","Opis elementa","Nakupna cena","Prodajna cena","Spletni stroški","Stroški PayPal","Pristojbine kreditne kartice","Plačilo dostave","Stroški pošiljanja","Prodajni dobiček/izguba","Dobiček/izguba pošiljanja","Skupni dobiček/izguba"]
["Leto",null,"TS001","Element 1",{"v":5,"d":"5.00 €"},{"v":4,"d":"4.00 €"},{"v":2,"d":"2.00 €"},{"v":1.5,"d":"1.50 €"},{"v":0,"d":"0.00 €"},{"v":4,"d":"4.00 €"},{"v":2,"d":"2.00 €"},{"$f":"IFERROR(ProdajaVJanuarju[Prodajna cena]-(ProdajaVJanuarju[Nakupna cena]+ProdajaVJanuarju[Spletni stroški]+ProdajaVJanuarju[Stroški PayPal]+ProdajaVJanuarju[Pristojbine kreditne kartice]),\"\")","v":{"v":-4.5,"d":"-4.50 €"}},{"$f":"ProdajaVJanuarju[Plačilo dostave]-ProdajaVJanuarju[Stroški pošiljanja]","v":{"v":2,"d":"2.00 €"}},{"$f":"ProdajaVJanuarju[Prodajni dobiček/izguba]+ProdajaVJanuarju[Dobiček/izguba pošiljanja]","v":{"v":-2.5,"d":"-2.50 €"}}]
[2012,null,"TP004","Element 2",{"v":2,"d":"2.00 €"},{"v":30,"d":"30.00 €"},{"v":0.5,"d":"0.50 €"},{"v":0.5,"d":"0.50 €"},null,{"v":4,"d":"4.00 €"},{"v":5.5,"d":"5.50 €"},{"$f":"IFERROR(ProdajaVJanuarju[Prodajna cena]-(ProdajaVJanuarju[Nakupna cena]+ProdajaVJanuarju[Spletni stroški]+ProdajaVJanuarju[Stroški PayPal]+ProdajaVJanuarju[Pristojbine kreditne kartice]),\"\")","v":{"v":27,"d":"27.00 €"}},{"$f":"ProdajaVJanuarju[Plačilo dostave]-ProdajaVJanuarju[Stroški pošiljanja]","v":{"v":-1.5,"d":"-1.50 €"}},{"$f":"ProdajaVJanuarju[Prodajni dobiček/izguba]+ProdajaVJanuarju[Dobiček/izguba pošiljanja]","v":{"v":25.5,"d":"25.50 €"}}]
[null,null,"RS99","Element 3",{"v":17,"d":"17.00 €"},{"v":23,"d":"23.00 €"},{"v":2,"d":"2.00 €"},null,{"v":2,"d":"2.00 €"},{"v":3,"d":"3.00 €"},{"v":2,"d":"2.00 €"},{"$f":"IFERROR(ProdajaVJanuarju[Prodajna cena]-(ProdajaVJanuarju[Nakupna cena]+ProdajaVJanuarju[Spletni stroški]+ProdajaVJanuarju[Stroški PayPal]+ProdajaVJanuarju[Pristojbine kreditne kartice]),\"\")","v":{"v":2,"d":"2.00 €"}},{"$f":"ProdajaVJanuarju[Plačilo dostave]-ProdajaVJanuarju[Stroški pošiljanja]","v":{"v":1,"d":"1.00 €"}},{"$f":"ProdajaVJanuarju[Prodajni dobiček/izguba]+ProdajaVJanuarju[Dobiček/izguba pošiljanja]","v":{"v":3,"d":"3.00 €"}}]
["Skupni dobiček/izguba",null,"ST001","Element 4",{"v":120,"d":"120.00 €"},{"v":180,"d":"180.00 €"},{"v":2,"d":"2.00 €"},{"v":1.5,"d":"1.50 €"},null,{"v":3,"d":"3.00 €"},{"v":2,"d":"2.00 €"},{"$f":"IFERROR(ProdajaVJanuarju[Prodajna cena]-(ProdajaVJanuarju[Nakupna cena]+ProdajaVJanuarju[Spletni stroški]+ProdajaVJanuarju[Stroški PayPal]+ProdajaVJanuarju[Pristojbine kreditne kartice]),\"\")","v":{"v":56.5,"d":"56.50 €"}},{"$f":"ProdajaVJanuarju[Plačilo dostave]-ProdajaVJanuarju[Stroški pošiljanja]","v":{"v":1,"d":"1.00 €"}},{"$f":"ProdajaVJanuarju[Prodajni dobiček/izguba]+ProdajaVJanuarju[Dobiček/izguba pošiljanja]","v":{"v":57.5,"d":"57.50 €"}}]
[{"$f":"ProdajaVJanuarju[[#Totals],[Skupni dobiček/izguba]]","v":{"v":89,"d":"89.00 €"}},null,"ST001","Element 5",{"v":10,"d":"10.00 €"},{"v":12,"d":"12.00 €"},{"v":2,"d":"2.00 €"},{"v":1.5,"d":"1.50 €"},null,{"v":14,"d":"14.00 €"},{"v":7,"d":"7.00 €"},{"$f":"IFERROR(ProdajaVJanuarju[Prodajna cena]-(ProdajaVJanuarju[Nakupna cena]+ProdajaVJanuarju[Spletni stroški]+ProdajaVJanuarju[Stroški PayPal]+ProdajaVJanuarju[Pristojbine kreditne kartice]),\"\")","v":{"v":-1.5,"d":"-1.50 €"}},{"$f":"ProdajaVJanuarju[Plačilo dostave]-ProdajaVJanuarju[Stroški pošiljanja]","v":{"v":7,"d":"7.00 €"}},{"$f":"ProdajaVJanuarju[Prodajni dobiček/izguba]+ProdajaVJanuarju[Dobiček/izguba pošiljanja]","v":{"v":5.5,"d":"5.50 €"}}]
[null,null," Skupaj",{"$f":"\"Prodani elementi: \"&SUBTOTAL(103,ProdajaVJanuarju[Opis elementa])","v":"Prodani elementi: 5"},{"$f":"SUBTOTAL(109,ProdajaVJanuarju[Nakupna cena])","v":{"v":154,"d":"154.00 €"}},{"$f":"SUBTOTAL(109,ProdajaVJanuarju[Prodajna cena])","v":{"v":249,"d":"249.00 €"}},{"$f":"SUBTOTAL(109,ProdajaVJanuarju[Spletni stroški])","v":{"v":8.5,"d":"8.50 €"}},{"$f":"SUBTOTAL(109,ProdajaVJanuarju[Stroški PayPal])","v":{"v":5,"d":"5.00 €"}},{"$f":"SUBTOTAL(109,ProdajaVJanuarju[Pristojbine kreditne kartice])","v":{"v":2,"d":"2.00 €"}},{"$f":"SUBTOTAL(109,ProdajaVJanuarju[Plačilo dostave])","v":{"v":28,"d":"28.00 €"}},{"$f":"SUBTOTAL(109,ProdajaVJanuarju[Stroški pošiljanja])","v":{"v":18.5,"d":"18.50 €"}},{"$f":"SUBTOTAL(109,ProdajaVJanuarju[Prodajni dobiček/izguba])","v":{"v":79.5,"d":"79.50 €"}},{"$f":"SUBTOTAL(109,ProdajaVJanuarju[Dobiček/izguba pošiljanja])","v":{"v":9.5,"d":"9.50 €"}},{"$f":"SUBTOTAL(109,ProdajaVJanuarju[Skupni dobiček/izguba])","v":{"v":89,"d":"89.00 €"}}]
["Gibanje dobička/izgube"]

{"sheet":"Februar","index":1,"n_rows":9,"n_cols":14,"rows_kept":9,"merged":[[3,0,4,0],[6,0,7,0]]}
["FEBRUAR"]
["Spletna prodaja",null,"ID dražbe","Opis elementa","Nakupna cena","Prodajna cena","Spletni stroški","Stroški PayPal","Pristojbine kreditne kartice","Plačilo dostave","Stroški pošiljanja","Prodajni dobiček/izguba","Dobiček/izguba pošiljanja","Skupni dobiček/izguba"]
["Leto",null,"TS020","Element 1",{"v":10,"d":"10.00 €"},{"v":175,"d":"175.00 €"},{"v":3,"d":"3.00 €"},{"v":1.5,"d":"1.50 €"},{"v":0,"d":"0.00 €"},{"v":7,"d":"7.00 €"},{"v":5,"d":"5.00 €"},{"$f":"IFERROR(ProdajaVFebruarju[Prodajna cena]-(ProdajaVFebruarju[Nakupna cena]+ProdajaVFebruarju[Spletni stroški]+ProdajaVFebruarju[Stroški PayPal]+ProdajaVFebruarju[Pristojbine kreditne kartice]),\"\")","v":{"v":160.5,"d":"160.50 €"}},{"$f":"ProdajaVFebruarju[Plačilo dostave]-ProdajaVFebruarju[Stroški pošiljanja]","v":{"v":2,"d":"2.00 €"}},{"$f":"ProdajaVFebruarju[Prodajni dobiček/izguba]+ProdajaVFebruarju[Dobiček/izguba pošiljanja]","v":{"v":162.5,"d":"162.50 €"}}]
[{"$f":"ProdajnoLeto","v":2012},null,"TS021","Element 2",{"v":32,"d":"32.00 €"},{"v":100,"d":"100.00 €"},{"v":3,"d":"3.00 €"},null,{"v":3.2,"d":"3.20 €"},{"v":20,"d":"20.00 €"},{"v":13,"d":"13.00 €"},{"$f":"IFERROR(ProdajaVFebruarju[Prodajna cena]-(ProdajaVFebruarju[Nakupna cena]+ProdajaVFebruarju[Spletni stroški]+ProdajaVFebruarju[Stroški PayPal]+ProdajaVFebruarju[Pristojbine kreditne kartice]),\"\")","v":{"v":61.8,"d":"61.80 €"}},{"$f":"ProdajaVFebruarju[Plačilo dostave]-ProdajaVFebruarju[Stroški pošiljanja]","v":{"v":7,"d":"7.00 €"}},{"$f":"ProdajaVFebruarju[Prodajni dobiček/izguba]+ProdajaVFebruarju[Dobiček/izguba pošiljanja]","v":{"v":68.8,"d":"68.80 €"}}]
[null,null,"TS022","Element 3",{"v":3,"d":"3.00 €"},{"v":7,"d":"7.00 €"},{"v":2,"d":"2.00 €"},null,{"v":2,"d":"2.00 €"},{"v":0.5,"d":"0.50 €"},{"v":1.2,"d":"1.20 €"},{"$f":"IFERROR(ProdajaVFebruarju[Prodajna cena]-(ProdajaVFebruarju[Nakupna cena]+ProdajaVFebruarju[Spletni stroški]+ProdajaVFebruarju[Stroški PayPal]+ProdajaVFebruarju[Pristojbine kreditne kartice]),\"\")","v":{"v":0,"d":"0.00 €"}},{"$f":"ProdajaVFebruarju[Plačilo dostave]-ProdajaVFebruarju[Stroški pošiljanja]","v":{"v":-0.7,"d":"-0.70 €"}},{"$f":"ProdajaVFebruarju[Prodajni dobiček/izguba]+ProdajaVFebruarju[Dobiček/izguba pošiljanja]","v":{"v":-0.7,"d":"-0.70 €"}}]
["Skupni dobiček/izguba",null,"TS023","Element 4",{"v":22,"d":"22.00 €"},{"v":18,"d":"18.00 €"},{"v":3,"d":"3.00 €"},{"v":1.5,"d":"1.50 €"},null,{"v":7,"d":"7.00 €"},{"v":10,"d":"10.00 €"},{"$f":"IFERROR(ProdajaVFebruarju[Prodajna cena]-(ProdajaVFebruarju[Nakupna cena]+ProdajaVFebruarju[Spletni stroški]+ProdajaVFebruarju[Stroški PayPal]+ProdajaVFebruarju[Pristojbine kreditne kartice]),\"\")","v":{"v":-8.5,"d":"-8.50 €"}},{"$f":"ProdajaVFebruarju[Plačilo dostave]-ProdajaVFebruarju[Stroški pošiljanja]","v":{"v":-3,"d":"-3.00 €"}},{"$f":"ProdajaVFebruarju[Prodajni dobiček/izguba]+ProdajaVFebruarju[Dobiček/izguba pošiljanja]","v":{"v":-11.5,"d":"-11.50 €"}}]
[{"$f":"ProdajaVFebruarju[[#Totals],[Skupni dobiček/izguba]]","v":{"v":224.60000000000002,"d":"224.60 €"}},null,"TS024","Element 5",{"v":10,"d":"10.00 €"},{"v":12,"d":"12.00 €"},{"v":2,"d":"2.00 €"},{"v":1.5,"d":"1.50 €"},null,{"v":14,"d":"14.00 €"},{"v":7,"d":"7.00 €"},{"$f":"IFERROR(ProdajaVFebruarju[Prodajna cena]-(ProdajaVFebruarju[Nakupna cena]+ProdajaVFebruarju[Spletni stroški]+ProdajaVFebruarju[Stroški PayPal]+ProdajaVFebruarju[Pristojbine kreditne kartice]),\"\")","v":{"v":-1.5,"d":"-1.50 €"}},{"$f":"ProdajaVFebruarju[Plačilo dostave]-ProdajaVFebruarju[Stroški pošiljanja]","v":{"v":7,"d":"7.00 €"}},{"$f":"ProdajaVFebruarju[Prodajni dobiček/izguba]+ProdajaVFebruarju[Dobiček/izguba pošiljanja]","v":{"v":5.5,"d":"5.50 €"}}]
[null,null," Skupaj",{"$f":"\"Prodani elementi: \"&SUBTOTAL(103,ProdajaVFebruarju[Opis elementa])","v":"Prodani elementi: 5"},{"$f":"SUBTOTAL(109,ProdajaVFebruarju[Nakupna cena])","v":{"v":77,"d":"77.00 €"}},{"$f":"SUBTOTAL(109,ProdajaVFebruarju[Prodajna cena])","v":{"v":312,"d":"312.00 €"}},{"$f":"SUBTOTAL(109,ProdajaVFebruarju[Spletni stroški])","v":{"v":13,"d":"13.00 €"}},{"$f":"SUBTOTAL(109,ProdajaVFebruarju[Stroški PayPal])","v":{"v":4.5,"d":"4.50 €"}},{"$f":"SUBTOTAL(109,ProdajaVFebruarju[Pristojbine kreditne kartice])","v":{"v":5.2,"d":"5.20 €"}},{"$f":"SUBTOTAL(109,ProdajaVFebruarju[Plačilo dostave])","v":{"v":48.5,"d":"48.50 €"}},{"$f":"SUBTOTAL(109,ProdajaVFebruarju[Stroški pošiljanja])","v":{"v":36.2,"d":"36.20 €"}},{"$f":"SUBTOTAL(109,ProdajaVFebruarju[Prodajni dobiček/izguba])","v":{"v":212.3,"d":"212.30 €"}},{"$f":"SUBTOTAL(109,ProdajaVFebruarju[Dobiček/izguba pošiljanja])","v":{"v":12.3,"d":"12.30 €"}},{"$f":"SUBTOTAL(109,ProdajaVFebruarju[Skupni dobiček/izguba])","v":{"v":224.60000000000002,"d":"224.60 €"}}]
["Gibanje dobička/izgube"]

{"sheet":"Marec","index":2,"n_rows":9,"n_cols":14,"rows_kept":9,"merged":[[3,0,4,0],[6,0,7,0]]}
["MAREC"]
["Spletna prodaja",null,"ID dražbe","Opis elementa","Nakupna cena","Prodajna cena","Spletni stroški","Stroški PayPal","Pristojbine kreditne kartice","Plačilo dostave","Stroški pošiljanja","Prodajni dobiček/izguba","Dobiček/izguba pošiljanja","Skupni dobiček/izguba"]
["Leto",{"$nulls":10},{"$f":"IFERROR(ProdajaVMarcu[Prodajna cena]-(ProdajaVMarcu[Nakupna cena]+ProdajaVMarcu[Spletni stroški]+ProdajaVMarcu[Stroški PayPal]+ProdajaVMarcu[Pristojbine kreditne kartice]),\"\")","v":{"v":0,"d":"0.00 €"}},{"$f":"ProdajaVMarcu[Plačilo dostave]-ProdajaVMarcu[Stroški pošiljanja]","v":{"v":0,"d":"0.00 €"}},{"$f":"ProdajaVMarcu[Prodajni dobiček/izguba]+ProdajaVMarcu[Dobiček/izguba pošiljanja]","v":{"v":0,"d":"0.00 €"}}]
[{"$f":"ProdajnoLeto","v":2012},{"$nulls":10},{"$f":"IFERROR(ProdajaVMarcu[Prodajna cena]-(ProdajaVMarcu[Nakupna cena]+ProdajaVMarcu[Spletni stroški]+ProdajaVMarcu[Stroški PayPal]+ProdajaVMarcu[Pristojbine kreditne kartice]),\"\")","v":{"v":0,"d":"0.00 €"}},{"$f":"ProdajaVMarcu[Plačilo dostave]-ProdajaVMarcu[Stroški pošiljanja]","v":{"v":0,"d":"0.00 €"}},{"$f":"ProdajaVMarcu[Prodajni dobiček/izguba]+ProdajaVMarcu[Dobiček/izguba pošiljanja]","v":{"v":0,"d":"0.00 €"}}]
[{"$nulls":11},{"$f":"IFERROR(ProdajaVMarcu[Prodajna cena]-(ProdajaVMarcu[Nakupna cena]+ProdajaVMarcu[Spletni stroški]+ProdajaVMarcu[Stroški PayPal]+ProdajaVMarcu[Pristojbine kreditne kartice]),\"\")","v":{"v":0,"d":"0.00 €"}},{"$f":"ProdajaVMarcu[Plačilo dostave]-ProdajaVMarcu[Stroški pošiljanja]","v":{"v":0,"d":"0.00 €"}},{"$f":"ProdajaVMarcu[Prodajni dobiček/izguba]+ProdajaVMarcu[Dobiček/izguba pošiljanja]","v":{"v":0,"d":"0.00 €"}}]
["Skupni dobiček/izguba",{"$nulls":10},{"$f":"IFERROR(ProdajaVMarcu[Prodajna cena]-(ProdajaVMarcu[Nakupna cena]+ProdajaVMarcu[Spletni stroški]+ProdajaVMarcu[Stroški PayPal]+ProdajaVMarcu[Pristojbine kreditne kartice]),\"\")","v":{"v":0,"d":"0.00 €"}},{"$f":"ProdajaVMarcu[Plačilo dostave]-ProdajaVMarcu[Stroški pošiljanja]","v":{"v":0,"d":"0.00 €"}},{"$f":"ProdajaVMarcu[Prodajni dobiček/izguba]+ProdajaVMarcu[Dobiček/izguba pošiljanja]","v":{"v":0,"d":"0.00 €"}}]
[{"$f":"ProdajaVMarcu[[#Totals],[Skupni dobiček/izguba]]","v":{"v":0,"d":"0.00 €"}},{"$nulls":10},{"$f":"IFERROR(ProdajaVMarcu[Prodajna cena]-(ProdajaVMarcu[Nakupna cena]+ProdajaVMarcu[Spletni stroški]+ProdajaVMarcu[Stroški PayPal]+ProdajaVMarcu[Pristojbine kreditne kartice]),\"\")","v":{"v":0,"d":"0.00 €"}},{"$f":"ProdajaVMarcu[Plačilo dostave]-ProdajaVMarcu[Stroški pošiljanja]","v":{"v":0,"d":"0.00 €"}},{"$f":"ProdajaVMarcu[Prodajni dobiček/izguba]+ProdajaVMarcu[Dobiček/izguba pošiljanja]","v":{"v":0,"d":"0.00 €"}}]
[null,null," Skupaj",{"$f":"\"Prodani elementi: \"&SUBTOTAL(103,ProdajaVMarcu[Opis elementa])","v":"Prodani elementi: 0"},{"$f":"SUBTOTAL(109,ProdajaVMarcu[Nakupna cena])","v":{"v":0,"d":"0.00 €"}},{"$f":"SUBTOTAL(109,ProdajaVMarcu[Prodajna cena])","v":{"v":0,"d":"0.00 €"}},{"$f":"SUBTOTAL(109,ProdajaVMarcu[Spletni stroški])","v":{"v":0,"d":"0.00 €"}},{"$f":"SUBTOTAL(109,ProdajaVMarcu[Stroški PayPal])","v":{"v":0,"d":"0.00 €"}},{"$f":"SUBTOTAL(109,ProdajaVMarcu[Pristojbine kreditne kartice])","v":{"v":0,"d":"0.00 €"}},{"$f":"SUBTOTAL(109,ProdajaVMarcu[Plačilo dostave])","v":{"v":0,"d":"0.00 €"}},{"$f":"SUBTOTAL(109,ProdajaVMarcu[Stroški pošiljanja])","v":{"v":0,"d":"0.00 €"}},{"$f":"SUBTOTAL(109,ProdajaVMarcu[Prodajni dobiček/izguba])","v":{"v":0,"d":"0.00 €"}},{"$f":"SUBTOTAL(109,ProdajaVMarcu[Dobiček/izguba pošiljanja])","v":{"v":0,"d":"0.00 €"}},{"$f":"SUBTOTAL(109,ProdajaVMarcu[Skupni dobiček/izguba])","v":{"v":0,"d":"0.00 €"}}]
["Gibanje dobička/izgube"]

{"sheet":"April","index":3,"n_rows":9,"n_cols":14,"rows_kept":9,"merged":[[3,0,4,0],[6,0,7,0]]}
["APRIL"]
["Spletna prodaja",null,"ID dražbe","Opis elementa","Nakupna cena","Prodajna cena","Spletni stroški","Stroški PayPal","Pristojbine kreditne kartice","Plačilo dostave","Stroški pošiljanja","Prodajni dobiček/izguba","Dobiček/izguba pošiljanja","Skupni dobiček/izguba"]
["Leto",{"$nulls":11},{"$f":"ProdajaVAprilu[Plačilo dostave]-ProdajaVAprilu[Stroški pošiljanja]","v":{"v":0,"d":"0.00 €"}},{"$f":"ProdajaVAprilu[Prodajni dobiček/izguba]+ProdajaVAprilu[Dobiček/izguba pošiljanja]","v":{"v":0,"d":"0.00 €"}}]
[{"$f":"ProdajnoLeto","v":2012},{"$nulls":11},{"$f":"ProdajaVAprilu[Plačilo dostave]-ProdajaVAprilu[Stroški pošiljanja]","v":{"v":0,"d":"0.00 €"}},{"$f":"ProdajaVAprilu[Prodajni dobiček/izguba]+ProdajaVAprilu[Dobiček/izguba pošiljanja]","v":{"v":0,"d":"0.00 €"}}]
[{"$nulls":12},{"$f":"ProdajaVAprilu[Plačilo dostave]-ProdajaVAprilu[Stroški pošiljanja]","v":{"v":0,"d":"0.00 €"}},{"$f":"ProdajaVAprilu[Prodajni dobiček/izguba]+ProdajaVAprilu[Dobiček/izguba pošiljanja]","v":{"v":0,"d":"0.00 €"}}]
["Skupni dobiček/izguba",{"$nulls":11},{"$f":"ProdajaVAprilu[Plačilo dostave]-ProdajaVAprilu[Stroški pošiljanja]","v":{"v":0,"d":"0.00 €"}},{"$f":"ProdajaVAprilu[Prodajni dobiček/izguba]+ProdajaVAprilu[Dobiček/izguba pošiljanja]","v":{"v":0,"d":"0.00 €"}}]
[{"$f":"ProdajaVAprilu[[#Totals],[Skupni dobiček/izguba]]","v":{"v":0,"d":"0.00 €"}},{"$nulls":11},{"$f":"ProdajaVAprilu[Plačilo dostave]-ProdajaVAprilu[Stroški pošiljanja]","v":{"v":0,"d":"0.00 €"}},{"$f":"ProdajaVAprilu[Prodajni dobiček/izguba]+ProdajaVAprilu[Dobiček/izguba pošiljanja]","v":{"v":0,"d":"0.00 €"}}]
[null,null," Skupaj",{"$f":"\"Prodani elementi: \"&SUBTOTAL(103,ProdajaVAprilu[Opis elementa])","v":"Prodani elementi: 0"},{"$f":"SUBTOTAL(109,ProdajaVAprilu[Nakupna cena])","v":{"v":0,"d":"0.00 €"}},{"$f":"SUBTOTAL(109,ProdajaVAprilu[Prodajna cena])","v":{"v":0,"d":"0.00 €"}},{"$f":"SUBTOTAL(109,ProdajaVAprilu[Spletni stroški])","v":{"v":0,"d":"0.00 €"}},{"$f":"SUBTOTAL(109,ProdajaVAprilu[Stroški PayPal])","v":{"v":0,"d":"0.00 €"}},{"$f":"SUBTOTAL(109,ProdajaVAprilu[Pristojbine kreditne kartice])","v":{"v":0,"d":"0.00 €"}},{"$f":"SUBTOTAL(109,ProdajaVAprilu[Plačilo dostave])","v":{"v":0,"d":"0.00 €"}},{"$f":"SUBTOTAL(109,ProdajaVAprilu[Stroški pošiljanja])","v":{"v":0,"d":"0.00 €"}},{"$f":"SUBTOTAL(109,ProdajaVAprilu[Prodajni dobiček/izguba])","v":{"v":0,"d":"0.00 €"}},{"$f":"SUBTOTAL(109,ProdajaVAprilu[Dobiček/izguba pošiljanja])","v":{"v":0,"d":"0.00 €"}},{"$f":"SUBTOTAL(109,ProdajaVAprilu[Skupni dobiček/izguba])","v":{"v":0,"d":"0.00 €"}}]
["Gibanje dobička/izgube"]

{"sheet":"maj","index":4,"n_rows":9,"n_cols":14,"rows_kept":9,"merged":[[3,0,4,0],[6,0,7,0]]}
["MAJ"]
["Spletna prodaja",null,"ID dražbe","Opis elementa","Nakupna cena","Prodajna cena","Spletni stroški","Stroški PayPal","Pristojbine kreditne kartice","Plačilo dostave","Stroški pošiljanja","Prodajni dobiček/izguba","Dobiček/izguba pošiljanja","Skupni dobiček/izguba"]
["Leto",{"$nulls":11},{"$f":"ProdajaVMaju[Plačilo dostave]-ProdajaVMaju[Stroški pošiljanja]","v":{"v":0,"d":"0.00 €"}},{"$f":"ProdajaVMaju[Prodajni dobiček/izguba]+ProdajaVMaju[Dobiček/izguba pošiljanja]","v":{"v":0,"d":"0.00 €"}}]
[{"$f":"ProdajnoLeto","v":2012},{"$nulls":11},{"$f":"ProdajaVMaju[Plačilo dostave]-ProdajaVMaju[Stroški pošiljanja]","v":{"v":0,"d":"0.00 €"}},{"$f":"ProdajaVMaju[Prodajni dobiček/izguba]+ProdajaVMaju[Dobiček/izguba pošiljanja]","v":{"v":0,"d":"0.00 €"}}]
[{"$nulls":12},{"$f":"ProdajaVMaju[Plačilo dostave]-ProdajaVMaju[Stroški pošiljanja]","v":{"v":0,"d":"0.00 €"}},{"$f":"ProdajaVMaju[Prodajni dobiček/izguba]+ProdajaVMaju[Dobiček/izguba pošiljanja]","v":{"v":0,"d":"0.00 €"}}]
["Skupni dobiček/izguba",{"$nulls":11},{"$f":"ProdajaVMaju[Plačilo dostave]-ProdajaVMaju[Stroški pošiljanja]","v":{"v":0,"d":"0.00 €"}},{"$f":"ProdajaVMaju[Prodajni dobiček/izguba]+ProdajaVMaju[Dobiček/izguba pošiljanja]","v":{"v":0,"d":"0.00 €"}}]
[{"$f":"ProdajaVMaju[[#Totals],[Skupni dobiček/izguba]]","v":{"v":0,"d":"0.00 €"}},{"$nulls":11},{"$f":"ProdajaVMaju[Plačilo dostave]-ProdajaVMaju[Stroški pošiljanja]","v":{"v":0,"d":"0.00 €"}},{"$f":"ProdajaVMaju[Prodajni dobiček/izguba]+ProdajaVMaju[Dobiček/izguba pošiljanja]","v":{"v":0,"d":"0.00 €"}}]
[null,null,"Skupaj",{"$f":"\"Prodani elementi: \"&SUBTOTAL(103,ProdajaVMaju[Opis elementa])","v":"Prodani elementi: 0"},{"$f":"SUBTOTAL(109,ProdajaVMaju[Nakupna cena])","v":{"v":0,"d":"0.00 €"}},{"$f":"SUBTOTAL(109,ProdajaVMaju[Prodajna cena])","v":{"v":0,"d":"0.00 €"}},{"$f":"SUBTOTAL(109,ProdajaVMaju[Spletni stroški])","v":{"v":0,"d":"0.00 €"}},{"$f":"SUBTOTAL(109,ProdajaVMaju[Stroški PayPal])","v":{"v":0,"d":"0.00 €"}},{"$f":"SUBTOTAL(109,ProdajaVMaju[Pristojbine kreditne kartice])","v":{"v":0,"d":"0.00 €"}},{"$f":"SUBTOTAL(109,ProdajaVMaju[Plačilo dostave])","v":{"v":0,"d":"0.00 €"}},{"$f":"SUBTOTAL(109,ProdajaVMaju[Stroški pošiljanja])","v":{"v":0,"d":"0.00 €"}},{"$f":"SUBTOTAL(109,ProdajaVMaju[Prodajni dobiček/izguba])","v":{"v":0,"d":"0.00 €"}},{"$f":"SUBTOTAL(109,ProdajaVMaju[Dobiček/izguba pošiljanja])","v":{"v":0,"d":"0.00 €"}},{"$f":"SUBTOTAL(109,ProdajaVMaju[Skupni dobiček/izguba])","v":{"v":0,"d":"0.00 €"}}]
["Gibanje dobička/izgube"]

{"sheet":"Junij","index":5,"n_rows":9,"n_cols":14,"rows_kept":9,"merged":[[3,0,4,0],[6,0,7,0]]}
["JUNIJ"]
["Spletna prodaja",null,"ID dražbe","Opis elementa","Nakupna cena","Prodajna cena","Spletni stroški","Stroški PayPal","Pristojbine kreditne kartice","Plačilo dostave","Stroški pošiljanja","Prodajni dobiček/izguba","Dobiček/izguba pošiljanja","Skupni dobiček/izguba"]
["Leto",{"$nulls":11},{"$f":"ProdajaVJuniju[Plačilo dostave]-ProdajaVJuniju[Stroški pošiljanja]","v":{"v":0,"d":"0.00 €"}},{"$f":"ProdajaVJuniju[Prodajni dobiček/izguba]+ProdajaVJuniju[Dobiček/izguba pošiljanja]","v":{"v":0,"d":"0.00 €"}}]
[{"$f":"ProdajnoLeto","v":2012},{"$nulls":11},{"$f":"ProdajaVJuniju[Plačilo dostave]-ProdajaVJuniju[Stroški pošiljanja]","v":{"v":0,"d":"0.00 €"}},{"$f":"ProdajaVJuniju[Prodajni dobiček/izguba]+ProdajaVJuniju[Dobiček/izguba pošiljanja]","v":{"v":0,"d":"0.00 €"}}]
[{"$nulls":12},{"$f":"ProdajaVJuniju[Plačilo dostave]-ProdajaVJuniju[Stroški pošiljanja]","v":{"v":0,"d":"0.00 €"}},{"$f":"ProdajaVJuniju[Prodajni dobiček/izguba]+ProdajaVJuniju[Dobiček/izguba pošiljanja]","v":{"v":0,"d":"0.00 €"}}]
["Skupni dobiček/izguba",{"$nulls":11},{"$f":"ProdajaVJuniju[Plačilo dostave]-ProdajaVJuniju[Stroški pošiljanja]","v":{"v":0,"d":"0.00 €"}},{"$f":"ProdajaVJuniju[Prodajni dobiček/izguba]+ProdajaVJuniju[Dobiček/izguba pošiljanja]","v":{"v":0,"d":"0.00 €"}}]
[{"$f":"ProdajaVJuniju[[#Totals],[Skupni dobiček/izguba]]","v":{"v":0,"d":"0.00 €"}},{"$nulls":11},{"$f":"ProdajaVJuniju[Plačilo dostave]-ProdajaVJuniju[Stroški pošiljanja]","v":{"v":0,"d":"0.00 €"}},{"$f":"ProdajaVJuniju[Prodajni dobiček/izguba]+ProdajaVJuniju[Dobiček/izguba pošiljanja]","v":{"v":0,"d":"0.00 €"}}]
[null,null,"Skupaj",{"$f":"\"Items Sold: \"&SUBTOTAL(103,ProdajaVJuniju[Opis elementa])","v":"Items Sold: 0"},{"$f":"SUBTOTAL(109,ProdajaVJuniju[Nakupna cena])","v":{"v":0,"d":"0.00 €"}},{"$f":"SUBTOTAL(109,ProdajaVJuniju[Prodajna cena])","v":{"v":0,"d":"0.00 €"}},{"$f":"SUBTOTAL(109,ProdajaVJuniju[Spletni stroški])","v":{"v":0,"d":"0.00 €"}},{"$f":"SUBTOTAL(109,ProdajaVJuniju[Stroški PayPal])","v":{"v":0,"d":"0.00 €"}},{"$f":"SUBTOTAL(109,ProdajaVJuniju[Pristojbine kreditne kartice])","v":{"v":0,"d":"0.00 €"}},{"$f":"SUBTOTAL(109,ProdajaVJuniju[Plačilo dostave])","v":{"v":0,"d":"0.00 €"}},{"$f":"SUBTOTAL(109,ProdajaVJuniju[Stroški pošiljanja])","v":{"v":0,"d":"0.00 €"}},{"$f":"SUBTOTAL(109,ProdajaVJuniju[Prodajni dobiček/izguba])","v":{"v":0,"d":"0.00 €"}},{"$f":"SUBTOTAL(109,ProdajaVJuniju[Dobiček/izguba pošiljanja])","v":{"v":0,"d":"0.00 €"}},{"$f":"SUBTOTAL(109,ProdajaVJuniju[Skupni dobiček/izguba])","v":{"v":0,"d":"0.00 €"}}]
["Gibanje dobička/izgube"]

{"sheet":"Julij","index":6,"n_rows":9,"n_cols":14,"rows_kept":9,"merged":[[3,0,4,0],[6,0,7,0]]}
["JULIJ"]
["Spletna prodaja",null,"ID dražbe","Opis elementa","Nakupna cena","Prodajna cena","Spletni stroški","Stroški PayPal","Pristojbine kreditne kartice","Plačilo dostave","Stroški pošiljanja","Prodajni dobiček/izguba","Dobiček/izguba pošiljanja","Skupni dobiček/izguba"]
["Leto",{"$nulls":11},{"$f":"ProdajaVJuliju[Plačilo dostave]-ProdajaVJuliju[Stroški pošiljanja]","v":{"v":0,"d":"0.00 €"}},{"$f":"ProdajaVJuliju[Prodajni dobiček/izguba]+ProdajaVJuliju[Dobiček/izguba pošiljanja]","v":{"v":0,"d":"0.00 €"}}]
[{"$f":"ProdajnoLeto","v":2012},{"$nulls":11},{"$f":"ProdajaVJuliju[Plačilo dostave]-ProdajaVJuliju[Stroški pošiljanja]","v":{"v":0,"d":"0.00 €"}},{"$f":"ProdajaVJuliju[Prodajni dobiček/izguba]+ProdajaVJuliju[Dobiček/izguba pošiljanja]","v":{"v":0,"d":"0.00 €"}}]
[{"$nulls":12},{"$f":"ProdajaVJuliju[Plačilo dostave]-ProdajaVJuliju[Stroški pošiljanja]","v":{"v":0,"d":"0.00 €"}},{"$f":"ProdajaVJuliju[Prodajni dobiček/izguba]+ProdajaVJuliju[Dobiček/izguba pošiljanja]","v":{"v":0,"d":"0.00 €"}}]
["Skupni dobiček/izguba",{"$nulls":11},{"$f":"ProdajaVJuliju[Plačilo dostave]-ProdajaVJuliju[Stroški pošiljanja]","v":{"v":0,"d":"0.00 €"}},{"$f":"ProdajaVJuliju[Prodajni dobiček/izguba]+ProdajaVJuliju[Dobiček/izguba pošiljanja]","v":{"v":0,"d":"0.00 €"}}]
[{"$f":"ProdajaVJuliju[[#Totals],[Skupni dobiček/izguba]]","v":{"v":0,"d":"0.00 €"}},{"$nulls":11},{"$f":"ProdajaVJuliju[Plačilo dostave]-ProdajaVJuliju[Stroški pošiljanja]","v":{"v":0,"d":"0.00 €"}},{"$f":"ProdajaVJuliju[Prodajni dobiček/izguba]+ProdajaVJuliju[Dobiček/izguba pošiljanja]","v":{"v":0,"d":"0.00 €"}}]
[null,null,"Skupaj",{"$f":"\"Prodani elementi: \"&SUBTOTAL(103,ProdajaVJuliju[Opis elementa])","v":"Prodani elementi: 0"},{"$f":"SUBTOTAL(109,ProdajaVJuliju[Nakupna cena])","v":{"v":0,"d":"0.00 €"}},{"$f":"SUBTOTAL(109,ProdajaVJuliju[Prodajna cena])","v":{"v":0,"d":"0.00 €"}},{"$f":"SUBTOTAL(109,ProdajaVJuliju[Spletni stroški])","v":{"v":0,"d":"0.00 €"}},{"$f":"SUBTOTAL(109,ProdajaVJuliju[Stroški PayPal])","v":{"v":0,"d":"0.00 €"}},{"$f":"SUBTOTAL(109,ProdajaVJuliju[Pristojbine kreditne kartice])","v":{"v":0,"d":"0.00 €"}},{"$f":"SUBTOTAL(109,ProdajaVJuliju[Plačilo dostave])","v":{"v":0,"d":"0.00 €"}},{"$f":"SUBTOTAL(109,ProdajaVJuliju[Stroški pošiljanja])","v":{"v":0,"d":"0.00 €"}},{"$f":"SUBTOTAL(109,ProdajaVJuliju[Prodajni dobiček/izguba])","v":{"v":0,"d":"0.00 €"}},{"$f":"SUBTOTAL(109,ProdajaVJuliju[Dobiček/izguba pošiljanja])","v":{"v":0,"d":"0.00 €"}},{"$f":"SUBTOTAL(109,ProdajaVJuliju[Skupni dobiček/izguba])","v":{"v":0,"d":"0.00 €"}}]
["Gibanje dobička/izgube"]

{"sheet":"Avgust","index":7,"n_rows":9,"n_cols":14,"rows_kept":9,"merged":[[3,0,4,0],[6,0,7,0]]}
["AVGUST"]
["Spletna prodaja",null,"ID dražbe","Opis elementa","Nakupna cena","Prodajna cena","Spletni stroški","Stroški PayPal","Pristojbine kreditne kartice","Plačilo dostave","Stroški pošiljanja","Prodajni dobiček/izguba","Dobiček/izguba pošiljanja","Skupni dobiček/izguba"]
["Leto",{"$nulls":11},{"$f":"ProdajaVAvgustu[Plačilo dostave]-ProdajaVAvgustu[Stroški pošiljanja]","v":{"v":0,"d":"0.00 €"}},{"$f":"ProdajaVAvgustu[Prodajni dobiček/izguba]+ProdajaVAvgustu[Dobiček/izguba pošiljanja]","v":{"v":0,"d":"0.00 €"}}]
[{"$f":"ProdajnoLeto","v":2012},{"$nulls":11},{"$f":"ProdajaVAvgustu[Plačilo dostave]-ProdajaVAvgustu[Stroški pošiljanja]","v":{"v":0,"d":"0.00 €"}},{"$f":"ProdajaVAvgustu[Prodajni dobiček/izguba]+ProdajaVAvgustu[Dobiček/izguba pošiljanja]","v":{"v":0,"d":"0.00 €"}}]
[{"$nulls":12},{"$f":"ProdajaVAvgustu[Plačilo dostave]-ProdajaVAvgustu[Stroški pošiljanja]","v":{"v":0,"d":"0.00 €"}},{"$f":"ProdajaVAvgustu[Prodajni dobiček/izguba]+ProdajaVAvgustu[Dobiček/izguba pošiljanja]","v":{"v":0,"d":"0.00 €"}}]
["Skupni dobiček/izguba",{"$nulls":11},{"$f":"ProdajaVAvgustu[Plačilo dostave]-ProdajaVAvgustu[Stroški pošiljanja]","v":{"v":0,"d":"0.00 €"}},{"$f":"ProdajaVAvgustu[Prodajni dobiček/izguba]+ProdajaVAvgustu[Dobiček/izguba pošiljanja]","v":{"v":0,"d":"0.00 €"}}]
[{"$f":"ProdajaVAvgustu[[#Totals],[Skupni dobiček/izguba]]","v":{"v":0,"d":"0.00 €"}},{"$nulls":11},{"$f":"ProdajaVAvgustu[Plačilo dostave]-ProdajaVAvgustu[Stroški pošiljanja]","v":{"v":0,"d":"0.00 €"}},{"$f":"ProdajaVAvgustu[Prodajni dobiček/izguba]+ProdajaVAvgustu[Dobiček/izguba pošiljanja]","v":{"v":0,"d":"0.00 €"}}]
[null,null,"Skupaj",{"$f":"\"Prodani elementi: \"&SUBTOTAL(103,ProdajaVAvgustu[Opis elementa])","v":"Prodani elementi: 0"},{"$f":"SUBTOTAL(109,ProdajaVAvgustu[Nakupna cena])","v":{"v":0,"d":"0.00 €"}},{"$f":"SUBTOTAL(109,ProdajaVAvgustu[Prodajna cena])","v":{"v":0,"d":"0.00 €"}},{"$f":"SUBTOTAL(109,ProdajaVAvgustu[Spletni stroški])","v":{"v":0,"d":"0.00 €"}},{"$f":"SUBTOTAL(109,ProdajaVAvgustu[Stroški PayPal])","v":{"v":0,"d":"0.00 €"}},{"$f":"SUBTOTAL(109,ProdajaVAvgustu[Pristojbine kreditne kartice])","v":{"v":0,"d":"0.00 €"}},{"$f":"SUBTOTAL(109,ProdajaVAvgustu[Plačilo dostave])","v":{"v":0,"d":"0.00 €"}},{"$f":"SUBTOTAL(109,ProdajaVAvgustu[Stroški pošiljanja])","v":{"v":0,"d":"0.00 €"}},{"$f":"SUBTOTAL(109,ProdajaVAvgustu[Prodajni dobiček/izguba])","v":{"v":0,"d":"0.00 €"}},{"$f":"SUBTOTAL(109,ProdajaVAvgustu[Dobiček/izguba pošiljanja])","v":{"v":0,"d":"0.00 €"}},{"$f":"SUBTOTAL(109,ProdajaVAvgustu[Skupni dobiček/izguba])","v":{"v":0,"d":"0.00 €"}}]
["Gibanje dobička/izgube"]

{"sheet":"September","index":8,"n_rows":9,"n_cols":14,"rows_kept":9,"merged":[[3,0,4,0],[6,0,7,0]]}
["SEPTEMBER"]
["Spletna prodaja",null,"ID dražbe","Opis elementa","Nakupna cena","Prodajna cena","Spletni stroški","Stroški PayPal","Pristojbine kreditne kartice","Plačilo dostave","Stroški pošiljanja","Prodajni dobiček/izguba","Dobiček/izguba pošiljanja","Skupni dobiček/izguba"]
["Leto",{"$nulls":11},{"$f":"ProdajaVSeptembru[Plačilo dostave]-ProdajaVSeptembru[Stroški pošiljanja]","v":{"v":0,"d":"0.00 €"}},{"$f":"ProdajaVSeptembru[Prodajni dobiček/izguba]+ProdajaVSeptembru[Dobiček/izguba pošiljanja]","v":{"v":0,"d":"0.00 €"}}]
[{"$f":"ProdajnoLeto","v":2012},{"$nulls":11},{"$f":"ProdajaVSeptembru[Plačilo dostave]-ProdajaVSeptembru[Stroški pošiljanja]","v":{"v":0,"d":"0.00 €"}},{"$f":"ProdajaVSeptembru[Prodajni dobiček/izguba]+ProdajaVSeptembru[Dobiček/izguba pošiljanja]","v":{"v":0,"d":"0.00 €"}}]
[{"$nulls":12},{"$f":"ProdajaVSeptembru[Plačilo dostave]-ProdajaVSeptembru[Stroški pošiljanja]","v":{"v":0,"d":"0.00 €"}},{"$f":"ProdajaVSeptembru[Prodajni dobiček/izguba]+ProdajaVSeptembru[Dobiček/izguba pošiljanja]","v":{"v":0,"d":"0.00 €"}}]
["Skupni dobiček/izguba",{"$nulls":11},{"$f":"ProdajaVSeptembru[Plačilo dostave]-ProdajaVSeptembru[Stroški pošiljanja]","v":{"v":0,"d":"0.00 €"}},{"$f":"ProdajaVSeptembru[Prodajni dobiček/izguba]+ProdajaVSeptembru[Dobiček/izguba pošiljanja]","v":{"v":0,"d":"0.00 €"}}]
[{"$f":"ProdajaVSeptembru[[#Totals],[Skupni dobiček/izguba]]","v":{"v":0,"d":"0.00 €"}},{"$nulls":11},{"$f":"ProdajaVSeptembru[Plačilo dostave]-ProdajaVSeptembru[Stroški pošiljanja]","v":{"v":0,"d":"0.00 €"}},{"$f":"ProdajaVSeptembru[Prodajni dobiček/izguba]+ProdajaVSeptembru[Dobiček/izguba pošiljanja]","v":{"v":0,"d":"0.00 €"}}]
[null,null,"Skupaj",{"$f":"\"Prodani elementi: \"&SUBTOTAL(103,ProdajaVSeptembru[Opis elementa])","v":"Prodani elementi: 0"},{"$f":"SUBTOTAL(109,ProdajaVSeptembru[Nakupna cena])","v":{"v":0,"d":"0.00 €"}},{"$f":"SUBTOTAL(109,ProdajaVSeptembru[Prodajna cena])","v":{"v":0,"d":"0.00 €"}},{"$f":"SUBTOTAL(109,ProdajaVSeptembru[Spletni stroški])","v":{"v":0,"d":"0.00 €"}},{"$f":"SUBTOTAL(109,ProdajaVSeptembru[Stroški PayPal])","v":{"v":0,"d":"0.00 €"}},{"$f":"SUBTOTAL(109,ProdajaVSeptembru[Pristojbine kreditne kartice])","v":{"v":0,"d":"0.00 €"}},{"$f":"SUBTOTAL(109,ProdajaVSeptembru[Plačilo dostave])","v":{"v":0,"d":"0.00 €"}},{"$f":"SUBTOTAL(109,ProdajaVSeptembru[Stroški pošiljanja])","v":{"v":0,"d":"0.00 €"}},{"$f":"SUBTOTAL(109,ProdajaVSeptembru[Prodajni dobiček/izguba])","v":{"v":0,"d":"0.00 €"}},{"$f":"SUBTOTAL(109,ProdajaVSeptembru[Dobiček/izguba pošiljanja])","v":{"v":0,"d":"0.00 €"}},{"$f":"SUBTOTAL(109,ProdajaVSeptembru[Skupni dobiček/izguba])","v":{"v":0,"d":"0.00 €"}}]
["Gibanje dobička/izgube"]

{"sheet":"Oktober","index":9,"n_rows":9,"n_cols":14,"rows_kept":9,"merged":[[3,0,4,0],[6,0,7,0]]}
["OKTOBER"]
["Spletna prodaja",null,"ID dražbe","Opis elementa","Nakupna cena","Prodajna cena","Spletni stroški","Stroški PayPal","Pristojbine kreditne kartice","Plačilo dostave","Stroški pošiljanja","Prodajni dobiček/izguba","Dobiček/izguba pošiljanja","Skupni dobiček/izguba"]
["Leto",{"$nulls":11},{"$f":"ProdajaVOktobru[Plačilo dostave]-ProdajaVOktobru[Stroški pošiljanja]","v":{"v":0,"d":"0.00 €"}},{"$f":"ProdajaVOktobru[Prodajni dobiček/izguba]+ProdajaVOktobru[Dobiček/izguba pošiljanja]","v":{"v":0,"d":"0.00 €"}}]
[{"$f":"ProdajnoLeto","v":2012},{"$nulls":11},{"$f":"ProdajaVOktobru[Plačilo dostave]-ProdajaVOktobru[Stroški pošiljanja]","v":{"v":0,"d":"0.00 €"}},{"$f":"ProdajaVOktobru[Prodajni dobiček/izguba]+ProdajaVOktobru[Dobiček/izguba pošiljanja]","v":{"v":0,"d":"0.00 €"}}]
[{"$nulls":12},{"$f":"ProdajaVOktobru[Plačilo dostave]-ProdajaVOktobru[Stroški pošiljanja]","v":{"v":0,"d":"0.00 €"}},{"$f":"ProdajaVOktobru[Prodajni dobiček/izguba]+ProdajaVOktobru[Dobiček/izguba pošiljanja]","v":{"v":0,"d":"0.00 €"}}]
["Skupni dobiček/izguba",{"$nulls":11},{"$f":"ProdajaVOktobru[Plačilo dostave]-ProdajaVOktobru[Stroški pošiljanja]","v":{"v":0,"d":"0.00 €"}},{"$f":"ProdajaVOktobru[Prodajni dobiček/izguba]+ProdajaVOktobru[Dobiček/izguba pošiljanja]","v":{"v":0,"d":"0.00 €"}}]
[{"$f":"ProdajaVOktobru[[#Totals],[Skupni dobiček/izguba]]","v":{"v":0,"d":"0.00 €"}},{"$nulls":11},{"$f":"ProdajaVOktobru[Plačilo dostave]-ProdajaVOktobru[Stroški pošiljanja]","v":{"v":0,"d":"0.00 €"}},{"$f":"ProdajaVOktobru[Prodajni dobiček/izguba]+ProdajaVOktobru[Dobiček/izguba pošiljanja]","v":{"v":0,"d":"0.00 €"}}]
[null,null,"Skupaj",{"$f":"\"Prodani elementi: \"&SUBTOTAL(103,ProdajaVOktobru[Opis elementa])","v":"Prodani elementi: 0"},{"$f":"SUBTOTAL(109,ProdajaVOktobru[Nakupna cena])","v":{"v":0,"d":"0.00 €"}},{"$f":"SUBTOTAL(109,ProdajaVOktobru[Prodajna cena])","v":{"v":0,"d":"0.00 €"}},{"$f":"SUBTOTAL(109,ProdajaVOktobru[Spletni stroški])","v":{"v":0,"d":"0.00 €"}},{"$f":"SUBTOTAL(109,ProdajaVOktobru[Stroški PayPal])","v":{"v":0,"d":"0.00 €"}},{"$f":"SUBTOTAL(109,ProdajaVOktobru[Pristojbine kreditne kartice])","v":{"v":0,"d":"0.00 €"}},{"$f":"SUBTOTAL(109,ProdajaVOktobru[Plačilo dostave])","v":{"v":0,"d":"0.00 €"}},{"$f":"SUBTOTAL(109,ProdajaVOktobru[Stroški pošiljanja])","v":{"v":0,"d":"0.00 €"}},{"$f":"SUBTOTAL(109,ProdajaVOktobru[Prodajni dobiček/izguba])","v":{"v":0,"d":"0.00 €"}},{"$f":"SUBTOTAL(109,ProdajaVOktobru[Dobiček/izguba pošiljanja])","v":{"v":0,"d":"0.00 €"}},{"$f":"SUBTOTAL(109,ProdajaVOktobru[Skupni dobiček/izguba])","v":{"v":0,"d":"0.00 €"}}]
["Gibanje dobička/izgube"]

{"sheet":"November","index":10,"n_rows":9,"n_cols":14,"rows_kept":9,"merged":[[3,0,4,0],[6,0,7,0]]}
["NOVEMBER"]
["Spletna prodaja",null,"ID dražbe","Opis elementa","Nakupna cena","Prodajna cena","Spletni stroški","Stroški PayPal","Pristojbine kreditne kartice","Plačilo dostave","Stroški pošiljanja","Prodajni dobiček/izguba","Dobiček/izguba pošiljanja","Skupni dobiček/izguba"]
["Leto",{"$nulls":11},{"$f":"ProdajaVNovembru[Plačilo dostave]-ProdajaVNovembru[Stroški pošiljanja]","v":{"v":0,"d":"0.00 €"}},{"$f":"ProdajaVNovembru[Prodajni dobiček/izguba]+ProdajaVNovembru[Dobiček/izguba pošiljanja]","v":{"v":0,"d":"0.00 €"}}]
[{"$f":"ProdajnoLeto","v":2012},{"$nulls":11},{"$f":"ProdajaVNovembru[Plačilo dostave]-ProdajaVNovembru[Stroški pošiljanja]","v":{"v":0,"d":"0.00 €"}},{"$f":"ProdajaVNovembru[Prodajni dobiček/izguba]+ProdajaVNovembru[Dobiček/izguba pošiljanja]","v":{"v":0,"d":"0.00 €"}}]
[{"$nulls":12},{"$f":"ProdajaVNovembru[Plačilo dostave]-ProdajaVNovembru[Stroški pošiljanja]","v":{"v":0,"d":"0.00 €"}},{"$f":"ProdajaVNovembru[Prodajni dobiček/izguba]+ProdajaVNovembru[Dobiček/izguba pošiljanja]","v":{"v":0,"d":"0.00 €"}}]
["Skupni dobiček/izguba",{"$nulls":11},{"$f":"ProdajaVNovembru[Plačilo dostave]-ProdajaVNovembru[Stroški pošiljanja]","v":{"v":0,"d":"0.00 €"}},{"$f":"ProdajaVNovembru[Prodajni dobiček/izguba]+ProdajaVNovembru[Dobiček/izguba pošiljanja]","v":{"v":0,"d":"0.00 €"}}]
[{"$f":"ProdajaVNovembru[[#Totals],[Skupni dobiček/izguba]]","v":{"v":0,"d":"0.00 €"}},{"$nulls":11},{"$f":"ProdajaVNovembru[Plačilo dostave]-ProdajaVNovembru[Stroški pošiljanja]","v":{"v":0,"d":"0.00 €"}},{"$f":"ProdajaVNovembru[Prodajni dobiček/izguba]+ProdajaVNovembru[Dobiček/izguba pošiljanja]","v":{"v":0,"d":"0.00 €"}}]
[null,null,"Skupaj",{"$f":"\"Prodani elementi: \"&SUBTOTAL(103,ProdajaVNovembru[Opis elementa])","v":"Prodani elementi: 0"},{"$f":"SUBTOTAL(109,ProdajaVNovembru[Nakupna cena])","v":{"v":0,"d":"0.00 €"}},{"$f":"SUBTOTAL(109,ProdajaVNovembru[Prodajna cena])","v":{"v":0,"d":"0.00 €"}},{"$f":"SUBTOTAL(109,ProdajaVNovembru[Spletni stroški])","v":{"v":0,"d":"0.00 €"}},{"$f":"SUBTOTAL(109,ProdajaVNovembru[Stroški PayPal])","v":{"v":0,"d":"0.00 €"}},{"$f":"SUBTOTAL(109,ProdajaVNovembru[Pristojbine kreditne kartice])","v":{"v":0,"d":"0.00 €"}},{"$f":"SUBTOTAL(109,ProdajaVNovembru[Plačilo dostave])","v":{"v":0,"d":"0.00 €"}},{"$f":"SUBTOTAL(109,ProdajaVNovembru[Stroški pošiljanja])","v":{"v":0,"d":"0.00 €"}},{"$f":"SUBTOTAL(109,ProdajaVNovembru[Prodajni dobiček/izguba])","v":{"v":0,"d":"0.00 €"}},{"$f":"SUBTOTAL(109,ProdajaVNovembru[Dobiček/izguba pošiljanja])","v":{"v":0,"d":"0.00 €"}},{"$f":"SUBTOTAL(109,ProdajaVNovembru[Skupni dobiček/izguba])","v":{"v":0,"d":"0.00 €"}}]
["Gibanje dobička/izgube"]

{"sheet":"December","index":11,"n_rows":9,"n_cols":14,"rows_kept":9,"merged":[[3,0,4,0],[6,0,7,0]]}
["DECEMBER"]
["Spletna prodaja",null,"ID dražbe","Opis elementa","Nakupna cena","Prodajna cena","Spletni stroški","Stroški PayPal","Pristojbine kreditne kartice","Plačilo dostave","Stroški pošiljanja","Prodajni dobiček/izguba","Dobiček/izguba pošiljanja","Skupni dobiček/izguba"]
["Leto",{"$nulls":11},{"$f":"ProdajaVDecembru[Plačilo dostave]-ProdajaVDecembru[Stroški pošiljanja]","v":{"v":0,"d":"0.00 €"}},{"$f":"ProdajaVDecembru[Prodajni dobiček/izguba]+ProdajaVDecembru[Dobiček/izguba pošiljanja]","v":{"v":0,"d":"0.00 €"}}]
[{"$f":"ProdajnoLeto","v":2012},{"$nulls":11},{"$f":"ProdajaVDecembru[Plačilo dostave]-ProdajaVDecembru[Stroški pošiljanja]","v":{"v":0,"d":"0.00 €"}},{"$f":"ProdajaVDecembru[Prodajni dobiček/izguba]+ProdajaVDecembru[Dobiček/izguba pošiljanja]","v":{"v":0,"d":"0.00 €"}}]
[{"$nulls":12},{"$f":"ProdajaVDecembru[Plačilo dostave]-ProdajaVDecembru[Stroški pošiljanja]","v":{"v":0,"d":"0.00 €"}},{"$f":"ProdajaVDecembru[Prodajni dobiček/izguba]+ProdajaVDecembru[Dobiček/izguba pošiljanja]","v":{"v":0,"d":"0.00 €"}}]
["Skupni dobiček/izguba",{"$nulls":11},{"$f":"ProdajaVDecembru[Plačilo dostave]-ProdajaVDecembru[Stroški pošiljanja]","v":{"v":0,"d":"0.00 €"}},{"$f":"ProdajaVDecembru[Prodajni dobiček/izguba]+ProdajaVDecembru[Dobiček/izguba pošiljanja]","v":{"v":0,"d":"0.00 €"}}]
[{"$f":"ProdajaVDecembru[[#Totals],[Skupni dobiček/izguba]]","v":{"v":0,"d":"0.00 €"}},{"$nulls":11},{"$f":"ProdajaVDecembru[Plačilo dostave]-ProdajaVDecembru[Stroški pošiljanja]","v":{"v":0,"d":"0.00 €"}},{"$f":"ProdajaVDecembru[Prodajni dobiček/izguba]+ProdajaVDecembru[Dobiček/izguba pošiljanja]","v":{"v":0,"d":"0.00 €"}}]
[null,null,"Skupaj",{"$f":"\"Prodani elementi: \"&SUBTOTAL(103,ProdajaVDecembru[Opis elementa])","v":"Prodani elementi: 0"},{"$f":"SUBTOTAL(109,ProdajaVDecembru[Nakupna cena])","v":{"v":0,"d":"0.00 €"}},{"$f":"SUBTOTAL(109,ProdajaVDecembru[Prodajna cena])","v":{"v":0,"d":"0.00 €"}},{"$f":"SUBTOTAL(109,ProdajaVDecembru[Spletni stroški])","v":{"v":0,"d":"0.00 €"}},{"$f":"SUBTOTAL(109,ProdajaVDecembru[Stroški PayPal])","v":{"v":0,"d":"0.00 €"}},{"$f":"SUBTOTAL(109,ProdajaVDecembru[Pristojbine kreditne kartice])","v":{"v":0,"d":"0.00 €"}},{"$f":"SUBTOTAL(109,ProdajaVDecembru[Plačilo dostave])","v":{"v":0,"d":"0.00 €"}},{"$f":"SUBTOTAL(109,ProdajaVDecembru[Stroški pošiljanja])","v":{"v":0,"d":"0.00 €"}},{"$f":"SUBTOTAL(109,ProdajaVDecembru[Prodajni dobiček/izguba])","v":{"v":0,"d":"0.00 €"}},{"$f":"SUBTOTAL(109,ProdajaVDecembru[Dobiček/izguba pošiljanja])","v":{"v":0,"d":"0.00 €"}},{"$f":"SUBTOTAL(109,ProdajaVDecembru[Skupni dobiček/izguba])","v":{"v":0,"d":"0.00 €"}}]
["Gibanje dobička/izgube"]

{"sheet":"Povzetek leta do danes","index":12,"n_rows":16,"n_cols":11,"rows_kept":16,"merged":[[3,0,4,0],[6,0,7,0]]}
["Zadnje leto"]
["Povzetek",null,"Dobiček/Izguba",{"$nulls":4},"Dobiček/izguba leta do danes"]
["Leto",{"$nulls":6},"Mesec","Prodajni dobiček/izguba","Dobiček/izguba pošiljanja","Skupni dobiček/izguba"]
[{"$f":"ProdajnoLeto","v":2012},{"$nulls":6},"Januar",{"$f":"ProdajaVJanuarju[[#Totals],[Prodajni dobiček/izguba]]","v":{"v":79.5,"d":"79.50 €"}},{"$f":"ProdajaVJanuarju[[#Totals],[Dobiček/izguba pošiljanja]]","v":{"v":9.5,"d":"9.50 €"}},{"$f":"IF(AND(Povzetek_LDD[[#This Row],[Prodajni dobiček/izguba]]<>\"\",Povzetek_LDD[[#This Row],[Dobiček/izguba pošiljanja]]<>\"\"),Povzetek_LDD[[#This Row],[Prodajni dobiček/izguba]]+Povzetek_LDD[[#This Row],[Dobiček/izguba pošiljanja]],\"\")","v":{"v":89,"d":"89.00 €"}}]
[{"$nulls":7},"Februar",{"$f":"ProdajaVFebruarju[[#Totals],[Prodajni dobiček/izguba]]","v":{"v":212.3,"d":"212.30 €"}},{"$f":"ProdajaVFebruarju[[#Totals],[Dobiček/izguba pošiljanja]]","v":{"v":12.3,"d":"12.30 €"}},{"$f":"IF(AND(Povzetek_LDD[[#This Row],[Prodajni dobiček/izguba]]<>\"\",Povzetek_LDD[[#This Row],[Dobiček/izguba pošiljanja]]<>\"\"),Povzetek_LDD[[#This Row],[Prodajni dobiček/izguba]]+Povzetek_LDD[[#This Row],[Dobiček/izguba pošiljanja]],\"\")","v":{"v":224.60000000000002,"d":"224.60 €"}}]
["Mesečni trend prodaje:",{"$nulls":6},"Marec",{"$f":"ProdajaVMarcu[[#Totals],[Prodajni dobiček/izguba]]","v":{"v":0,"d":"0.00 €"}},{"$f":"ProdajaVMarcu[[#Totals],[Dobiček/izguba pošiljanja]]","v":{"v":0,"d":"0.00 €"}},{"$f":"IF(AND(Povzetek_LDD[[#This Row],[Prodajni dobiček/izguba]]<>\"\",Povzetek_LDD[[#This Row],[Dobiček/izguba pošiljanja]]<>\"\"),Povzetek_LDD[[#This Row],[Prodajni dobiček/izguba]]+Povzetek_LDD[[#This Row],[Dobiček/izguba pošiljanja]],\"\")","v":{"v":0,"d":"0.00 €"}}]
[{"$nulls":7},"April",{"$f":"ProdajaVAprilu[[#Totals],[Prodajni dobiček/izguba]]","v":{"v":0,"d":"0.00 €"}},{"$f":"ProdajaVAprilu[[#Totals],[Dobiček/izguba pošiljanja]]","v":{"v":0,"d":"0.00 €"}},{"$f":"IF(AND(Povzetek_LDD[[#This Row],[Prodajni dobiček/izguba]]<>\"\",Povzetek_LDD[[#This Row],[Dobiček/izguba pošiljanja]]<>\"\"),Povzetek_LDD[[#This Row],[Prodajni dobiček/izguba]]+Povzetek_LDD[[#This Row],[Dobiček/izguba pošiljanja]],\"\")","v":{"v":0,"d":"0.00 €"}}]
[{"$nulls":7},"Maj",{"$f":"ProdajaVMaju[[#Totals],[Prodajni dobiček/izguba]]","v":{"v":0,"d":"0.00 €"}},{"$f":"ProdajaVMaju[[#Totals],[Dobiček/izguba pošiljanja]]","v":{"v":0,"d":"0.00 €"}},{"$f":"IF(AND(Povzetek_LDD[[#This Row],[Prodajni dobiček/izguba]]<>\"\",Povzetek_LDD[[#This Row],[Dobiček/izguba pošiljanja]]<>\"\"),Povzetek_LDD[[#This Row],[Prodajni dobiček/izguba]]+Povzetek_LDD[[#This Row],[Dobiček/izguba pošiljanja]],\"\")","v":{"v":0,"d":"0.00 €"}}]
[{"$nulls":7},"Junij",{"$f":"ProdajaVJuniju[[#Totals],[Prodajni dobiček/izguba]]","v":{"v":0,"d":"0.00 €"}},{"$f":"ProdajaVJuniju[[#Totals],[Dobiček/izguba pošiljanja]]","v":{"v":0,"d":"0.00 €"}},{"$f":"IF(AND(Povzetek_LDD[[#This Row],[Prodajni dobiček/izguba]]<>\"\",Povzetek_LDD[[#This Row],[Dobiček/izguba pošiljanja]]<>\"\"),Povzetek_LDD[[#This Row],[Prodajni dobiček/izguba]]+Povzetek_LDD[[#This Row],[Dobiček/izguba pošiljanja]],\"\")","v":{"v":0,"d":"0.00 €"}}]
[{"$nulls":7},"Julij",{"$f":"ProdajaVJuliju[[#Totals],[Prodajni dobiček/izguba]]","v":{"v":0,"d":"0.00 €"}},{"$f":"ProdajaVJuliju[[#Totals],[Dobiček/izguba pošiljanja]]","v":{"v":0,"d":"0.00 €"}},{"$f":"IF(AND(Povzetek_LDD[[#This Row],[Prodajni dobiček/izguba]]<>\"\",Povzetek_LDD[[#This Row],[Dobiček/izguba pošiljanja]]<>\"\"),Povzetek_LDD[[#This Row],[Prodajni dobiček/izguba]]+Povzetek_LDD[[#This Row],[Dobiček/izguba pošiljanja]],\"\")","v":{"v":0,"d":"0.00 €"}}]
[{"$nulls":7},"Avgust",{"$f":"ProdajaVAvgustu[[#Totals],[Prodajni dobiček/izguba]]","v":{"v":0,"d":"0.00 €"}},{"$f":"ProdajaVAvgustu[[#Totals],[Dobiček/izguba pošiljanja]]","v":{"v":0,"d":"0.00 €"}},{"$f":"IF(AND(Povzetek_LDD[[#This Row],[Prodajni dobiček/izguba]]<>\"\",Povzetek_LDD[[#This Row],[Dobiček/izguba pošiljanja]]<>\"\"),Povzetek_LDD[[#This Row],[Prodajni dobiček/izguba]]+Povzetek_LDD[[#This Row],[Dobiček/izguba pošiljanja]],\"\")","v":{"v":0,"d":"0.00 €"}}]
[{"$nulls":7},"September",{"$f":"ProdajaVSeptembru[[#Totals],[Prodajni dobiček/izguba]]","v":{"v":0,"d":"0.00 €"}},{"$f":"ProdajaVSeptembru[[#Totals],[Dobiček/izguba pošiljanja]]","v":{"v":0,"d":"0.00 €"}},{"$f":"IF(AND(Povzetek_LDD[[#This Row],[Prodajni dobiček/izguba]]<>\"\",Povzetek_LDD[[#This Row],[Dobiček/izguba pošiljanja]]<>\"\"),Povzetek_LDD[[#This Row],[Prodajni dobiček/izguba]]+Povzetek_LDD[[#This Row],[Dobiček/izguba pošiljanja]],\"\")","v":{"v":0,"d":"0.00 €"}}]
[{"$nulls":7},"Oktober",{"$f":"ProdajaVOktobru[[#Totals],[Prodajni dobiček/izguba]]","v":{"v":0,"d":"0.00 €"}},{"$f":"ProdajaVOktobru[[#Totals],[Dobiček/izguba pošiljanja]]","v":{"v":0,"d":"0.00 €"}},{"$f":"IF(AND(Povzetek_LDD[[#This Row],[Prodajni dobiček/izguba]]<>\"\",Povzetek_LDD[[#This Row],[Dobiček/izguba pošiljanja]]<>\"\"),Povzetek_LDD[[#This Row],[Prodajni dobiček/izguba]]+Povzetek_LDD[[#This Row],[Dobiček/izguba pošiljanja]],\"\")","v":{"v":0,"d":"0.00 €"}}]
[{"$nulls":7},"November",{"$f":"ProdajaVNovembru[[#Totals],[Prodajni dobiček/izguba]]","v":{"v":0,"d":"0.00 €"}},{"$f":"ProdajaVNovembru[[#Totals],[Dobiček/izguba pošiljanja]]","v":{"v":0,"d":"0.00 €"}},{"$f":"IF(AND(Povzetek_LDD[[#This Row],[Prodajni dobiček/izguba]]<>\"\",Povzetek_LDD[[#This Row],[Dobiček/izguba pošiljanja]]<>\"\"),Povzetek_LDD[[#This Row],[Prodajni dobiček/izguba]]+Povzetek_LDD[[#This Row],[Dobiček/izguba pošiljanja]],\"\")","v":{"v":0,"d":"0.00 €"}}]
[{"$nulls":7},"December",{"$f":"ProdajaVDecembru[[#Totals],[Prodajni dobiček/izguba]]","v":{"v":0,"d":"0.00 €"}},{"$f":"ProdajaVDecembru[[#Totals],[Dobiček/izguba pošiljanja]]","v":{"v":0,"d":"0.00 €"}},{"$f":"IF(AND(Povzetek_LDD[[#This Row],[Prodajni dobiček/izguba]]<>\"\",Povzetek_LDD[[#This Row],[Dobiček/izguba pošiljanja]]<>\"\"),Povzetek_LDD[[#This Row],[Prodajni dobiček/izguba]]+Povzetek_LDD[[#This Row],[Dobiček/izguba pošiljanja]],\"\")","v":{"v":0,"d":"0.00 €"}}]
[{"$nulls":7},"Skupaj",{"$f":"SUBTOTAL(109,Povzetek_LDD[Prodajni dobiček/izguba])","v":{"v":291.8,"d":"291.80 €"}},{"$f":"SUBTOTAL(109,Povzetek_LDD[Dobiček/izguba pošiljanja])","v":{"v":21.8,"d":"21.80 €"}},{"$f":"SUBTOTAL(109,Povzetek_LDD[Skupni dobiček/izguba])","v":{"v":313.6,"d":"313.60 €"}}]